bitfinex/quotes_SOLUSD_20251007
["timestamp","ask_amount","ask_price","bid_price","bid_amount"]
[1759865116155,31.92,221.71,221.7,5.1905999]
[1759865117272,31.92,221.71,221.69,4.5107884]
[1759865117432,31.92,221.71,221.69,5.2307884]
[1759865117633,33.92502665,221.71,221.69,4.5107884]
[1759865118059,2.00502665,221.7,221.69,15.38726361]
[1759865118244,2.00502665,221.7,221.69,10.87647521]
[1759865118648,31.92,221.71,221.69,10.87647521]
[1759865118854,32.6,221.71,221.69,10.87647521]
[1759865119563,0.68,221.7,221.65,20.8]
[1759865119870,0.68,221.69,221.66,10.87647521]
[1759865120667,2.00502665,221.67,221.66,10.87647521]
[1759865120865,33.92502665,221.67,221.65,10.87647521]
[1759865121163,31.92,221.67,221.65,11.59647521]
[1759865121368,0.68,221.66,221.65,10.87647521]
[1759865121874,0.68,221.66,221.64,10.87647521]
[1759865122250,2.68502665,221.66,221.64,10.87647521]
[1759865122479,2.00502665,221.65,221.64,10.87647521]
[1759865122648,2.00502665,221.65,221.61,15.38873529]
[1759865122848,2.68502665,221.65,221.61,15.38873529]
[1759865123105,36.43125572,221.67,221.59,32.08177983]
[1759865123106,2.00502665,221.63,221.59,15.38929165]
[1759865123258,33.92502665,221.62,221.59,15.38929165]
[1759865124381,33.92502665,221.62,221.58,10.87647521]
[1759865124588,33.92502665,221.62,221.58,11.59647521]
[1759865125894,2.00502665,221.61,221.58,11.59647521]
[1759865126268,2.00502665,221.61,221.59,4.51283902]
[1759865126894,33.92502665,221.62,221.59,4.51283902]
[1759865128498,34.60502665,221.62,221.57,16.10972158]
[1759865128703,2.00502665,221.61,221.57,16.10972158]
[1759865128871,2.68502665,221.6,221.57,15.38972158]
[1759865129070,32.6,221.59,221.57,15.38972158]
[1759865129271,31.92,221.59,221.57,15.38972158]
[1759865129497,32.6,221.59,221.57,15.38972158]
[1759865130082,33.92502665,221.59,221.56,4.51342289]
[1759865130287,34.60502665,221.59,221.56,4.51342289]
[1759865130490,32.6,221.59,221.56,4.51342289]
[1759865130677,0.68,221.58,221.55,0.1]
[1759865130881,0.68,221.57,221.55,0.1]
[1759865131096,31.92,221.56,221.55,0.1]
[1759865131473,31.92,221.56,221.55,15.49009462]
[1759865131673,2.27772665,221.59,221.56,10.87647521]
[1759865131882,31.92,221.58,221.56,10.87647521]
[1759865132095,2.95772665,221.59,221.55,4.61361941]
[1759865132297,31.92,221.57,221.55,4.61361941]
[1759865133413,2.68502665,221.58,221.55,4.61361941]
[1759865133572,31.92,221.56,221.55,4.61361941]
[1759865135897,0.68,221.58,221.55,4.61361941]
[1759865136079,31.92,221.57,221.55,4.61361941]
[1759865136279,2.68502665,221.58,221.55,4.61361941]
[1759865136485,31.92,221.57,221.55,4.61361941]
[1759865136696,2.68502665,221.58,221.55,4.61361941]
[1759865136697,2.00502665,221.58,221.55,4.61361941]
[1759865136891,31.92,221.56,221.55,4.61361941]
[1759865137092,0.68,221.58,221.55,4.61361941]
[1759865137279,31.92,221.56,221.55,4.61361941]
[1759865137691,0.68,221.6,221.56,10.87647521]
[1759865138000,31.92,221.59,221.56,11.59647521]
[1759865138198,34.60502665,221.59,221.56,10.87647521]
[1759865138509,34.60502665,221.59,221.56,15.38979467]
[1759865138877,2.68502665,221.58,221.55,10.97647521]
[1759865139104,33.92502665,221.59,221.55,15.49011636]
[1759865139291,34.60502665,221.59,221.55,15.49011636]
[1759865140409,32.6,221.59,221.55,15.49011636]
[1759865140597,34.60502665,221.59,221.55,16.18011636]
[1759865140794,133.58,221.64,221.58,20.8]
[1759865141005,31.92,221.63,221.59,11.56647521]
[1759865141197,33.92502665,221.63,221.59,10.87647521]
[1759865141386,33.92502665,221.63,221.6,0.69]
[1759865141585,33.92502665,221.63,221.59,10.87647521]
[1759865141786,2.00502665,221.62,221.59,10.87647521]
[1759865142491,2.00502665,221.62,221.59,15.3892394]
[1759865143909,0.68,221.61,221.59,15.3892394]
[1759865144207,31.92,221.6,221.59,15.3892394]
[1759865144704,31.92,221.6,221.59,10.87647521]
[1759865145011,32.6,221.6,221.55,0.1]
[1759865145315,2.00502665,221.56,221.55,0.1]
[1759865145513,33.92502665,221.56,221.55,0.79]
[1759865145684,31.92,221.56,221.55,0.79]
[1759865146114,31.92,221.56,221.55,0.1]
[1759865146320,31.92,221.56,221.55,0.79]
[1759865146622,0.69,221.64,221.56,10.87647521]
[1759865146784,23.32,221.63,221.6,4.51263537]
[1759865146985,23.32,221.63,221.61,0.72]
[1759865147713,23.32,221.63,221.6,4.51263537]
[1759865147897,23.32,221.63,221.6,5.23263537]
[1759865148507,23.32,221.63,221.6,4.51263537]
[1759865148685,25.32502665,221.63,221.59,10.87647521]
[1759865148891,2.69502665,221.62,221.59,10.87647521]
[1759865149307,0.69,221.62,221.59,15.38929539]
[1759865149605,2.69502665,221.62,221.59,15.38929539]
[1759865150819,2.96772665,221.62,221.59,15.38929539]
[1759865151107,0.2727,221.62,221.59,16.10929539]
[1759865152123,0.2727,221.62,221.6,0.72]
[1759865152409,0.2727,221.62,221.59,15.38929539]
[1759865153105,0.2727,221.62,221.59,16.10929539]
[1759865153306,0.2727,221.62,221.59,10.87647521]
[1759865153503,0.2727,221.62,221.61,10.87647521]
[1759865153689,0.2727,221.62,221.61,12.88150186]
[1759865153890,0.2727,221.62,221.61,34.40150186]
[1759865154194,0.2727,221.62,221.61,32.39647521]
[1759865155202,0.2727,221.62,221.61,31.67647521]
[1759865155516,0.2727,221.62,221.61,36.18890695]
[1759865156401,0.2727,221.62,221.61,36.90890695]
[1759865160433,0.2727,221.62,221.61,31.67647521]
[1759865160598,0.9627,221.62,221.61,20.8]
[1759865161032,0.2727,221.62,221.61,25.31243174]
[1759865162018,0.2727,221.62,221.59,4.51266448]
[1759865162213,2.69502665,221.61,221.58,20.8]
[1759865162521,0.2727,221.62,221.6,10.87647521]
[1759865162896,0.2727,221.62,221.6,11.59647521]
[1759865163117,0.2727,221.62,221.61,4.51243174]
[1759865163502,2.96772665,221.62,221.6,10.87647521]
[1759865163803,2.69502665,221.61,221.59,20.8]
[1759865164420,0.2727,221.62,221.6,10.87647521]
[1759865164608,0.2727,221.62,221.6,11.59647521]
[1759865164810,0.2727,221.62,221.61,11.59647521]
[1759865165015,0.2727,221.62,221.61,16.10890695]
[1759865165222,0.2727,221.62,221.61,18.1139336]
[1759865166012,0.2727,221.62,221.61,16.10890695]
[1759865167522,0.2727,221.62,221.61,18.1139336]
[1759865168222,0.2727,221.62,221.61,16.10890695]
[1759865168426,0.2727,221.62,221.61,18.1139336]
[1759865169603,0.2727,221.62,221.61,16.10890695]
[1759865170003,0.2727,221.62,221.61,18.1139336]
[1759865172135,0.2727,221.62,221.61,15.38890695]
[1759865173536,0.9627,221.62,221.61,15.38890695]
[1759865173707,0.2727,221.62,221.61,15.38890695]
[1759865174430,0.9627,221.62,221.61,15.38890695]
[1759865176010,0.2727,221.62,221.61,15.38890695]
[1759865177436,0.9627,221.62,221.61,15.38890695]
[1759865177602,0.2727,221.62,221.61,15.38890695]
[1759865178039,0.2727,221.62,221.61,18.0939336]
[1759865178425,133.59,221.72,221.65,10.87647521]
[1759865178637,133.59,221.72,221.61,18.49853776]
[1759865178638,0.69,221.74,221.69,10.87647521]
[1759865178931,4.05374686,221.73,221.69,13.58150186]
[1759865179234,0.69,221.73,221.69,11.57647521]
[1759865179730,35.0327941,221.75,221.69,11.57647521]
[1759865179731,31.9,221.75,221.7,4.5105999]
[1759865179914,0.69,221.73,221.69,10.87647521]
[1759865180109,3.36206707,221.74,221.67,25.31120334]
[1759865180110,3.1327941,221.7,221.67,25.31120334]
[1759865180410,3.8227941,221.72,221.68,10.87647521]
[1759865180640,0.69,221.71,221.68,10.87647521]
[1759865181733,31.88,221.72,221.68,10.87647521]
[1759865181915,31.88,221.72,221.69,4.51080337]
[1759865182430,0.69,221.71,221.68,15.3874761]
[1759865183112,0.69,221.7,221.68,15.3874761]
[1759865183329,35.7027941,221.72,221.68,15.3874761]
[1759865183505,0.69,221.71,221.68,15.3874761]
[1759865183707,35.0127941,221.72,221.68,15.3874761]
[1759865183931,3.8227941,221.71,221.68,15.3874761]
[1759865184131,0.69,221.7,221.68,15.3874761]
[1759865185835,3.1327941,221.71,221.68,15.3874761]
[1759865186039,3.8227941,221.71,221.68,15.3874761]
[1759865186216,0.69,221.71,221.68,15.3874761]
[1759865187331,0.69,221.7,221.68,15.3874761]
[1759865187836,3.1327941,221.71,221.68,15.3874761]
[1759865188042,3.8227941,221.71,221.68,15.3874761]
[1759865188334,0.69,221.71,221.68,15.3874761]
[1759865189428,3.8227941,221.71,221.68,15.3874761]
[1759865190825,3.1327941,221.71,221.68,15.3874761]
[1759865191029,0.69,221.71,221.68,15.3874761]
[1759865191229,3.1327941,221.71,221.68,10.87647521]
[1759865191434,3.8227941,221.7,221.65,15.38792242]
[1759865191615,3.1327941,221.7,221.65,15.38792242]
[1759865191816,3.8227941,221.7,221.65,16.08792242]
[1759865192035,3.1327941,221.71,221.67,10.87647521]
[1759865192213,3.8227941,221.71,221.67,10.87647521]
[1759865192619,3.8227941,221.71,221.67,11.57647521]
[1759865193337,3.8227941,221.71,221.68,4.51100685]
[1759865193740,0.69,221.71,221.68,4.51100685]
[1759865193917,3.8227941,221.71,221.68,4.51100685]
[1759865198333,3.1327941,221.71,221.67,15.38767226]
[1759865198532,0.69,221.7,221.67,15.38767226]
[1759865198934,3.1327941,221.71,221.67,15.38767226]
[1759865199134,3.8327941,221.71,221.67,16.06767226]
[1759865199642,3.8327941,221.71,221.67,15.38767226]
[1759865200346,3.8327941,221.71,221.67,16.06767226]
[1759865201628,3.8327941,221.71,221.67,27.34569815]
[1759865202934,31.88,221.72,221.69,4.51080337]
[1759865203151,3.1327941,221.71,221.69,4.51080337]
[1759865204745,3.1327941,221.7,221.68,4.51100685]
[1759865205238,3.1327941,221.7,221.68,5.19100685]
[1759865205425,31.88,221.72,221.68,5.19100685]
[1759865205626,3.1327941,221.71,221.68,5.19100685]
[1759865206024,3.8327941,221.71,221.68,5.19100685]
[1759865206537,13.54738196,221.85,221.69,11.55647521]
[1759865206538,3.1327941,221.75,221.69,11.55647521]
[1759865206851,31.86,221.72,221.71,4.51039646]
[1759865207042,31.86,221.72,221.71,5.22039646]
[1759865207627,31.86,221.72,221.71,4.51039646]
[1759865207843,31.86,221.72,221.7,4.51057736]
[1759865211830,31.86,221.72,221.7,5.22057736]
[1759865212049,31.86,221.72,221.7,4.51057736]
[1759865213951,0.66,221.82,221.71,14.71926931]
[1759865214135,3.3627593,221.81,221.76,10.87647521]
[1759865214337,3.3627593,221.8,221.79,14.00926931]
[1759865214553,31.86,221.82,221.8,10.87647521]
[1759865214759,31.86,221.82,221.81,0.71]
[1759865214962,35.22231274,221.82,221.81,0.71]
[1759865215143,31.86,221.82,221.81,0.71]
[1759865215938,31.86,221.82,221.8,15.38497584]
[1759865216134,31.86,221.82,221.8,16.09497584]
[1759865216762,31.86,221.82,221.8,15.38497584]
[1759865216963,31.86,221.82,221.79,10.87647521]
[1759865217141,31.86,221.82,221.79,11.58647521]
[1759865217341,31.86,221.82,221.79,10.87647521]
[1759865217644,31.86,221.82,221.8,0.71]
[1759865218182,3.7927941,221.81,221.71,0.71]
[1759865218351,3.1327941,221.75,221.72,11.58647521]
[1759865218551,3.1327941,221.76,221.74,10.87647521]
[1759865219352,3.1327941,221.76,221.72,10.87647521]
[1759865219556,3.1327941,221.76,221.74,0.71]
[1759865219858,3.1327941,221.76,221.72,10.87647521]
[1759865220059,3.1327941,221.76,221.74,10.87647521]
[1759865220264,3.1327941,221.76,221.74,15.3861552]
[1759865221254,3.7927941,221.75,221.68,11.27737283]
[1759865221538,3.1327941,221.71,221.69,10.87647521]
[1759865221740,3.1327941,221.71,221.69,11.58647521]
[1759865221956,3.1327941,221.72,221.69,11.58647521]
[1759865222143,3.1327941,221.7,221.69,10.87647521]
[1759865222358,3.1327941,221.7,221.68,10.87647521]
[1759865222761,31.84,221.71,221.69,0.71]
[1759865222960,34.9727941,221.71,221.69,0.71]
[1759865223561,34.9727941,221.71,221.68,10.87647521]
[1759865223758,34.9727941,221.71,221.68,11.58647521]
[1759865223965,31.84,221.71,221.68,11.58647521]
[1759865224357,34.9727941,221.71,221.68,16.09741945]
[1759865224558,31.84,221.71,221.68,16.09741945]
[1759865224868,4.50920551,221.77,221.69,0.71]
[1759865225048,35.85775707,221.76,221.69,0.71]
[1759865225248,3.1327941,221.74,221.69,0.71]
[1759865225464,31.84,221.73,221.69,0.71]
[1759865225676,34.9727941,221.73,221.69,0.71]
[1759865225848,35.6327941,221.73,221.68,15.38741945]
[1759865226057,35.6327941,221.73,221.68,16.09741945]
[1759865226254,3.1327941,221.72,221.68,16.09741945]
[1759865226553,3.1327941,221.69,221.65,25.31161485]
[1759865226860,0.66,221.71,221.66,11.58647521]
[1759865226861,34.9727941,221.7,221.66,11.58647521]
[1759865227061,31.84,221.7,221.66,11.58647521]
[1759865228557,31.84,221.7,221.67,5.22121035]
[1759865228868,31.84,221.7,221.68,11.58647521]
[1759865229047,31.84,221.7,221.69,0.71]
[1759865229248,31.84,221.7,221.68,10.87647521]
[1759865229551,31.84,221.7,221.68,11.58647521]
[1759865230558,31.84,221.7,221.69,4.51080337]
[1759865230867,31.84,221.7,221.69,5.22080337]
[1759865231055,31.84,221.7,221.69,4.51080337]
[1759865231463,31.84,221.7,221.69,15.38727858]
[1759865233954,31.84,221.7,221.69,16.09727858]
[1759865234160,3.1327941,221.74,221.7,10.87647521]
[1759865234362,31.84,221.73,221.71,0.71]
[1759865234561,31.84,221.73,221.72,10.87647521]
[1759865235746,31.84,221.74,221.72,15.38666824]
[1759865237048,32.1114,221.74,221.72,15.38666824]
[1759865238488,0.2714,221.74,221.73,11.56647521]
[1759865239565,31.84,221.83,221.78,10.87647521]
[1759865239891,31.84,221.83,221.8,14.00926931]
[1759865240060,31.84,221.83,221.78,10.87647521]
[1759865240362,3.1327941,221.79,221.74,25.30960652]
[1759865240694,3.1327941,221.77,221.75,31.67647521]
[1759865241062,2.00470873,221.77,221.75,31.67647521]
[1759865241462,2.00470873,221.77,221.76,15.38585471]
[1759865241663,0.66,221.78,221.76,15.38585471]
[1759865241863,2.66470873,221.78,221.76,15.38585471]
[1759865243271,2.66470873,221.78,221.73,0.69]
[1759865243470,2.00470873,221.75,221.74,10.87647521]
[1759865244066,2.66470873,221.77,221.74,10.87647521]
[1759865244268,0.66,221.77,221.74,10.87647521]
[1759865244487,2.66470873,221.77,221.74,10.87647521]
[1759865245874,31.84,221.8,221.75,4.50958286]
[1759865245875,2.00470873,221.78,221.75,4.50958286]
[1759865246074,2.66470873,221.78,221.75,4.50958286]
[1759865246974,0.66,221.78,221.75,4.50958286]
[1759865247183,2.66470873,221.78,221.75,4.50958286]
[1759865247376,0.66,221.77,221.75,4.50958286]
[1759865247576,2.66470873,221.77,221.75,4.50958286]
[1759865249372,2.00470873,221.78,221.75,4.50958286]
[1759865249573,2.66470873,221.78,221.75,4.50958286]
[1759865250478,31.84,221.8,221.74,15.38623361]
[1759865250479,2.66470873,221.77,221.74,15.38623361]
[1759865252606,0.66,221.79,221.74,16.07623361]
[1759865252776,2.00470873,221.77,221.74,16.07623361]
[1759865254596,2.66470873,221.78,221.74,16.07623361]
[1759865255594,0.66,221.77,221.74,15.38623361]
[1759865255798,2.00470873,221.75,221.73,10.87647521]
[1759865256007,2.66470873,221.75,221.73,10.87647521]
[1759865256307,2.00470873,221.74,221.73,10.87647521]
[1759865257303,2.00470873,221.74,221.72,4.51019211]
[1759865257304,2.66470873,221.74,221.68,10.87647521]
[1759865257478,2.66470873,221.74,221.67,5.20121035]
[1759865257479,2.00470873,221.73,221.7,10.87647521]
[1759865257677,31.82,221.72,221.71,4.51039646]
[1759865258176,34.48470873,221.72,221.69,20.8]
[1759865258482,33.82470873,221.72,221.69,20.8]
[1759865258798,33.82470873,221.72,221.69,21.47]
[1759865258986,33.82470873,221.72,221.69,25.98073466]
[1759865259390,31.82,221.72,221.69,25.98073466]
[1759865263881,2.00470873,221.71,221.69,20.8]
[1759865264087,0.67,221.7,221.69,20.8]
[1759865264292,0.67,221.7,221.68,20.8]
[1759865264501,2.00470873,221.71,221.68,20.8]
[1759865264810,2.00470873,221.71,221.69,20.8]
[1759865264980,2.00470873,221.7,221.69,20.8]
[1759865265183,2.67470873,221.7,221.66,4.51133781]
[1759865265418,2.67470873,221.69,221.66,4.51133781]
[1759865265622,32.49,221.72,221.67,0.67]
[1759865265790,3.35834934,221.71,221.68,11.54647521]
[1759865265988,5.36305807,221.71,221.66,4.51133781]
[1759865266192,2.67470873,221.7,221.67,10.87647521]
[1759865266413,2.00470873,221.7,221.67,10.87647521]
[1759865266585,2.00470873,221.7,221.67,11.54647521]
[1759865267686,33.82470873,221.72,221.68,0.69]
[1759865267884,0.68,221.71,221.67,10.87647521]
[1759865268081,0.68,221.71,221.68,4.51100685]
[1759865268325,2.68470873,221.71,221.68,4.51100685]
[1759865270187,2.00470873,221.71,221.68,5.20100685]
[1759865270413,2.00470873,221.71,221.68,4.51100685]
[1759865270622,2.68470873,221.71,221.68,4.51100685]
[1759865271198,31.82,221.7,221.69,11.56647521]
[1759865271499,31.82,221.7,221.69,0.69]
[1759865271696,31.82,221.7,221.68,4.51100685]
[1759865272021,31.82,221.7,221.68,5.20100685]
[1759865272190,31.82,221.7,221.67,10.87647521]
[1759865272394,31.82,221.7,221.67,16.07768501]
[1759865272815,31.82,221.7,221.68,0.69]
[1759865273822,2.00470873,221.71,221.67,15.38768501]
[1759865273823,31.8,221.71,221.69,5.20080337]
[1759865274521,31.8,221.71,221.67,16.07757795]
[1759865274720,31.8,221.71,221.68,0.69]
[1759865275124,2.00470873,221.72,221.68,0.69]
[1759865275428,31.8,221.71,221.68,0.69]
[1759865275726,31.8,221.71,221.69,4.51080337]
[1759865277506,31.8,221.71,221.69,11.56647521]
[1759865277823,31.8,221.71,221.69,10.87647521]
[1759865278630,31.8,221.71,221.69,15.38725533]
[1759865280716,31.8,221.71,221.68,0.69]
[1759865280717,34.48470873,221.71,221.68,10.87647521]
[1759865281902,34.48470873,221.71,221.68,16.07740521]
[1759865282103,34.48470873,221.71,221.68,15.38740521]
[1759865282402,2.68470873,221.7,221.66,5.20124182]
[1759865282634,2.68470873,221.7,221.67,10.87647521]
[1759865282842,0.68,221.69,221.67,10.87647521]
[1759865284143,34.48470873,221.68,221.65,25.31158706]
[1759865284627,34.48470873,221.68,221.65,21.49]
[1759865284930,33.80470873,221.68,221.65,26.00161556]
[1759865285633,34.48470873,221.68,221.65,20.8]
[1759865285929,2.00470873,221.67,221.63,25.31202454]
[1759865286231,2.00470873,221.67,221.64,0.69]
[1759865286602,32.48,221.68,221.64,0.69]
[1759865286807,2.00470873,221.67,221.65,0.69]
[1759865287403,2.00470873,221.67,221.64,0.69]
[1759865288416,2.68470873,221.67,221.63,21.49]
[1759865289139,2.00470873,221.66,221.63,20.8]
[1759865289445,3.64060351,221.8,221.6,10.87647521]
[1759865289446,2.00470873,221.64,221.61,10.87647521]
[1759865289618,33.80470873,221.63,221.61,15.3887319]
[1759865289801,33.80470873,221.63,221.6,4.51263466]
[1759865290002,34.48470873,221.63,221.6,4.51263466]
[1759865290431,2.00470873,221.62,221.6,4.51263466]
[1759865290905,33.80470873,221.63,221.6,0.69]
[1759865291131,31.8,221.63,221.6,0.69]
[1759865291333,0.68,221.63,221.59,4.51283902]
[1759865291511,33.80470873,221.62,221.59,10.87647521]
[1759865291709,33.80470873,221.62,221.59,11.56647521]
[1759865292331,31.8,221.62,221.59,11.56647521]
[1759865293020,34.48470873,221.62,221.59,15.38926178]
[1759865293212,2.68470873,221.61,221.6,20.8]
[1759865293406,2.00470873,221.61,221.6,20.8]
[1759865293613,34.48470873,221.62,221.6,20.8]
[1759865293826,31.8,221.62,221.6,20.8]
[1759865295333,2.00470873,221.67,221.61,11.56647521]
[1759865295627,31.8,221.66,221.63,10.87647521]
[1759865295832,31.8,221.66,221.63,11.56647521]
[1759865296016,31.8,221.66,221.61,11.56647521]
[1759865296017,32.48,221.66,221.61,11.56647521]
[1759865296222,32.48,221.66,221.63,10.87647521]
[1759865296828,0.69,221.65,221.61,10.87647521]
[1759865297013,2.69470873,221.64,221.61,10.87647521]
[1759865297336,31.8,221.63,221.61,16.03879357]
[1759865297727,31.8,221.63,221.61,15.38879357]
[1759865299037,31.8,221.63,221.61,16.03879357]
[1759865301239,0.69,221.68,221.63,10.87647521]
[1759865301413,35.84382838,221.67,221.62,11.52647521]
[1759865301629,35.62561379,221.67,221.62,11.52647521]
[1759865302142,35.62561379,221.67,221.63,0.65]
[1759865302143,32.49,221.67,221.63,0.65]
[1759865302318,35.62561379,221.67,221.63,0.65]
[1759865302527,0.69,221.66,221.62,10.87647521]
[1759865302720,3.82561379,221.66,221.62,11.52647521]
[1759865303221,3.82561379,221.66,221.63,4.51202454]
[1759865303422,0.69,221.65,221.63,4.51202454]
[1759865303648,31.8,221.64,221.63,4.51202454]
[1759865303845,31.8,221.64,221.61,11.52647521]
[1759865304027,31.8,221.64,221.62,0.65]
[1759865304638,31.8,221.64,221.61,10.87647521]
[1759865304946,31.8,221.63,221.61,11.52647521]
[1759865305125,31.78,221.63,221.61,16.03881099]
[1759865306146,31.78,221.63,221.61,15.38881099]
[1759865308026,31.78,221.63,221.61,16.03881099]
[1759865308950,31.78,221.63,221.61,15.38881099]
[1759865309332,31.78,221.63,221.61,16.03881099]
[1759865309542,31.78,221.63,221.61,15.38881099]
[1759865309850,31.78,221.63,221.62,20.8]
[1759865310728,32.47,221.63,221.6,20.8]
[1759865310925,3.82561379,221.62,221.6,20.8]
[1759865311154,3.82561379,221.61,221.6,20.8]
[1759865311357,3.82561379,221.61,221.59,20.8]
[1759865311651,31.78,221.6,221.59,20.8]
[1759865312152,31.78,221.6,221.59,25.31283902]
[1759865313436,31.78,221.6,221.59,4.51283902]
[1759865313844,31.78,221.6,221.59,36.83931423]
[1759865314756,31.78,221.6,221.59,39.97492802]
[1759865315843,31.78,221.62,221.6,10.87647521]
[1759865316041,31.78,221.62,221.6,11.52647521]
[1759865316561,31.78,221.62,221.61,15.38890695]
[1759865318580,32.47,221.62,221.6,4.51262136]
[1759865318739,31.78,221.62,221.6,4.51262136]
[1759865318937,0.69,221.62,221.6,4.51262136]
[1759865319138,31.78,221.61,221.6,4.51262136]
[1759865320945,31.78,221.61,221.59,15.38931423]
[1759865321466,32.47,221.61,221.59,15.38931423]
[1759865321663,31.78,221.61,221.59,15.38931423]
[1759865321966,0.69,221.6,221.59,15.38931423]
[1759865322345,34.91561379,221.61,221.59,15.38931423]
[1759865322546,35.60561379,221.61,221.59,15.38931423]
[1759865324252,32.47,221.61,221.59,15.38931423]
[1759865325179,3.82561379,221.6,221.57,10.87647521]
[1759865325350,0.69,221.6,221.57,10.87647521]
[1759865325972,31.78,221.59,221.57,10.87647521]
[1759865326666,31.78,221.59,221.58,4.51304269]
[1759865328959,32.45,221.59,221.58,4.51304269]
[1759865329356,31.78,221.59,221.58,4.51304269]
[1759865329664,0.67,221.64,221.58,5.23304269]
[1759865329967,35.13668594,221.63,221.59,0.72]
[1759865330173,4.02668594,221.62,221.59,0.72]
[1759865330377,133.57,221.66,221.6,0.72]
[1759865330561,41.27577869,221.65,221.6,0.72]
[1759865330754,3.35791686,221.64,221.6,0.72]
[1759865330953,3.35791686,221.63,221.61,0.72]
[1759865331280,35.11791686,221.62,221.59,10.87647521]
[1759865331579,4.02806791,221.61,221.59,10.87647521]
[1759865331770,0.67,221.6,221.57,15.38970752]
[1759865332080,31.76,221.6,221.57,16.10970752]
[1759865332280,31.76,221.6,221.58,0.72]
[1759865333648,31.76,221.6,221.59,10.87647521]
[1759865333850,31.76,221.6,221.59,15.38931423]
[1759865334349,31.76,221.6,221.57,10.87647521]
[1759865334350,32.43,221.6,221.57,10.87647521]
[1759865335093,0.67,221.59,221.56,10.87647521]
[1759865335256,0.67,221.58,221.56,10.87647521]
[1759865335456,31.76,221.57,221.56,10.87647521]
[1759865335785,32.43,221.57,221.55,10.97647521]
[1759865336177,3.13561379,221.56,221.55,10.97647521]
[1759865336491,3.80561379,221.56,221.55,10.97647521]
[1759865337152,3.80561379,221.56,221.55,4.6136538]
[1759865337356,6.49183458,221.56,221.55,4.6136538]
[1759865338158,3.13561379,221.56,221.55,4.6136538]
[1759865339764,6.4922833,221.56,221.55,4.6136538]
[1759865340173,3.13561379,221.56,221.55,4.6136538]
[1759865340969,31.76,221.57,221.55,4.6136538]
[1759865341364,35.56561379,221.57,221.55,4.6136538]
[1759865341567,3.35718313,221.56,221.55,4.6136538]
[1759865343471,6.49279692,221.56,221.55,4.6136538]
[1759865343870,6.49279692,221.56,221.55,0.1]
[1759865344073,11.676247,221.56,221.55,0.1]
[1759865345404,11.676247,221.56,221.51,0.1]
[1759865345405,3.13561379,221.52,221.51,0.1]
[1759865345576,45.78082379,221.52,221.45,0.1]
[1759865345774,3.13561379,221.47,221.45,0.1]
[1759865345974,38.24412869,221.47,221.45,0.1]
[1759865346304,38.91412869,221.47,221.45,0.1]
[1759865347991,3.3485149,221.47,221.45,0.1]
[1759865348194,38.91412869,221.47,221.45,0.1]
[1759865348788,38.24412869,221.47,221.45,0.1]
[1759865349173,38.91412869,221.47,221.46,4.61548812]
[1759865349396,38.91412869,221.47,221.46,0.1]
[1759865349794,38.91412869,221.47,221.46,4.61548812]
[1759865350093,39.18932869,221.47,221.46,4.61548812]
[1759865350595,39.18932869,221.47,221.46,0.1]
[1759865350773,39.18932869,221.47,221.46,4.61548812]
[1759865350973,39.17510059,221.47,221.46,4.61548812]
[1759865351198,38.50510059,221.47,221.46,4.61548812]
[1759865351382,6.74510059,221.47,221.46,4.61548812]
[1759865351697,38.50510059,221.47,221.46,4.61548812]
[1759865352199,35.3694868,221.47,221.46,4.61548812]
[1759865352386,39.17510059,221.47,221.46,4.61548812]
[1759865352797,7.41510059,221.47,221.46,4.61548812]
[1759865352997,39.17510059,221.47,221.46,4.61548812]
[1759865353502,6.74510059,221.47,221.46,4.61548812]
[1759865353704,35.17081379,221.47,221.46,5.33548812]
[1759865354999,35.17081379,221.47,221.46,4.61548812]
[1759865355705,35.17081379,221.47,221.46,5.33548812]
[1759865356108,32.0352,221.47,221.46,5.33548812]
[1759865356306,3.41081379,221.47,221.46,5.33548812]
[1759865356613,35.17081379,221.47,221.46,5.33548812]
[1759865356994,32.0352,221.47,221.46,5.33548812]
[1759865358178,32.0352,221.47,221.46,16.21196333]